[Event "Late-Titled-Tuesday-Blitz-July-09-2024"]
[Site "Chess.com"]
[Date "2024.07.09"]
[Round "8"]
[White "FMalexhdez"]
[Black "Al_Shima"]
[Result "0-1"]
[WhiteElo "2273"]
[BlackElo "2492"]
[TimeControl "180+1"]
[EndTime "15:28:40 PDT"]
[Termination "Al_Shima won on time"]

1. e4 {[%clk 0:03:00.9]} 1... d5 {[%clk 0:02:57.6]} 2. exd5 {[%clk 0:03:00.2]}
2... Nf6 {[%clk 0:02:57.8]} 3. Nc3 {[%clk 0:02:57.4]} 3... Nxd5 {[%clk
0:02:57.3]} 4. d3 {[%clk 0:02:56.9]} 4... g6 {[%clk 0:02:51.1]} 5. g3 {[%clk
0:02:56.7]} 5... Bg7 {[%clk 0:02:50.4]} 6. Bd2 {[%clk 0:02:55.8]} 6... O-O
{[%clk 0:02:47.7]} 7. Bg2 {[%clk 0:02:55.6]} 7... c6 {[%clk 0:02:47.5]} 8. Nf3
{[%clk 0:02:54]} 8... Nd7 {[%clk 0:02:46.9]} 9. O-O {[%clk 0:02:53.3]} 9... N7f6
{[%clk 0:02:46.6]} 10. Re1 {[%clk 0:02:52.8]} 10... Bd7 {[%clk 0:02:42.5]} 11.
Ne4 {[%clk 0:02:37.6]} 11... Re8 {[%clk 0:02:38.6]} 12. a3 {[%clk 0:02:31.7]}
12... b6 {[%clk 0:02:35.4]} 13. Rb1 {[%clk 0:02:21.7]} 13... Qc8 {[%clk
0:02:34.8]} 14. b4 {[%clk 0:02:20.9]} 14... Bh3 {[%clk 0:02:33.3]} 15. c4 {[%clk
0:02:14.8]} 15... Nxe4 {[%clk 0:02:11.2]} 16. Rxe4 {[%clk 0:01:55.8]} 16... Bxg2
{[%clk 0:02:04.1]} 17. Kxg2 {[%clk 0:01:49.6]} 17... Nf6 {[%clk 0:02:01.6]} 18.
Re1 {[%clk 0:01:30.7]} 18... e6 {[%clk 0:01:53.4]} 19. Qe2 {[%clk 0:01:13.2]}
19... Qa6 {[%clk 0:01:48.3]} 20. Bc1 {[%clk 0:01:07.3]} 20... b5 {[%clk
0:01:39.5]} 21. Bb2 {[%clk 0:01:05.8]} 21... Rad8 {[%clk 0:01:36.8]} 22. c5
{[%clk 0:00:59.7]} 22... Qa4 {[%clk 0:01:29.9]} 23. Ng5 {[%clk 0:00:40.1]} 23...
Rd5 {[%clk 0:01:05.9]} 24. Ne4 {[%clk 0:00:22.9]} 24... Nxe4 {[%clk 0:01:05.6]}
25. dxe4 {[%clk 0:00:22.7]} 25... Rd7 {[%clk 0:01:04.6]} 26. Bxg7 {[%clk
0:00:21.5]} 26... Kxg7 {[%clk 0:01:04.7]} 27. Qb2+ {[%clk 0:00:21.6]} 27... e5
{[%clk 0:00:53.6]} 28. Re3 {[%clk 0:00:18.7]} 28... Rd4 {[%clk 0:00:48.5]} 29.
Rbe1 {[%clk 0:00:14.2]} 29... Red8 {[%clk 0:00:47.3]} 30. R3e2 {[%clk
0:00:10.1]} 30... f6 {[%clk 0:00:44.6]} 31. f4 {[%clk 0:00:09.3]} 31... a5
{[%clk 0:00:34.4]} 32. fxe5 {[%clk 0:00:09.3]} 32... fxe5 {[%clk 0:00:34]} 33.
h4 {[%clk 0:00:09.7]} 33... axb4 {[%clk 0:00:33.5]} 34. axb4 {[%clk 0:00:09]}
34... Qxb4 {[%clk 0:00:33.4]} 35. Qxb4 {[%clk 0:00:08.6]} 35... Rxb4 {[%clk
0:00:33.2]} 36. Ra1 {[%clk 0:00:08.8]} 36... Rd7 {[%clk 0:00:31.7]} 37. Ra6
{[%clk 0:00:08.4]} 37... Rc7 {[%clk 0:00:31.8]} 38. Rb6 {[%clk 0:00:07.2]} 38...
Rc4 {[%clk 0:00:31.1]} 39. Rd2 {[%clk 0:00:03.1]} 39... Rxc5 {[%clk 0:00:30.5]}
40. Rb8 {[%clk 0:00:01.8]} 40... Rc4 {[%clk 0:00:22.5]} 41. Rd6 {[%clk
0:00:01.5]} 41... Rd4 {[%clk 0:00:21.8]} 42. Re6 {[%clk 0:00:01]} 42... Rxe4
{[%clk 0:00:19.9]} 43. Ree8 {[%clk 0:00:01.3]} 43... Rd4 {[%clk 0:00:19]} 44.
Rg8+ {[%clk 0:00:01.9]} 44... Kf6 {[%clk 0:00:19.1]} 45. Rgf8+ {[%clk
0:00:01.6]} 45... Ke6 {[%clk 0:00:19.2]} 46. Rbe8+ {[%clk 0:00:01.8]} 46... Kd6
{[%clk 0:00:19.3]} 47. Rf6+ {[%clk 0:00:01.9]} 47... Kc5 {[%clk 0:00:18.2]} 48.
Rxe5+ {[%clk 0:00:02.6]} 48... Kb6 {[%clk 0:00:18.5]} 49. Ree6 {[%clk
0:00:02.9]} 49... Rc4 {[%clk 0:00:18.3]} 50. h5 {[%clk 0:00:03.3]} 50... b4
{[%clk 0:00:18.5]} 51. hxg6 {[%clk 0:00:02.4]} 51... hxg6 {[%clk 0:00:19.4]} 52.
Rxg6 {[%clk 0:00:02.1]} 52... b3 {[%clk 0:00:19.1]} 53. Re2 {[%clk 0:00:01.9]}
53... Rb4 {[%clk 0:00:19.1]} 54. Rb2 {[%clk 0:00:01]} 54... Kb5 {[%clk
0:00:19.5]} 55. Rf6 {[%clk 0:00:01.2]} 55... c5 {[%clk 0:00:19.7]} 56. Rff2
{[%clk 0:00:01]} 56... c4 {[%clk 0:00:19.3]} 57. g4 {[%clk 0:00:01.3]} 57... c3
{[%clk 0:00:18.6]} 58. Rbe2 {[%clk 0:00:02]} 58... b2 {[%clk 0:00:18.6]} 59.
Rf5+ {[%clk 0:00:02]} 59... Rc5 {[%clk 0:00:18.6]} 60. Rxc5+ {[%clk 0:00:01.7]}
60... Kxc5 {[%clk 0:00:19.5]} 0-1

[Event "Late-Titled-Tuesday-Blitz-July-09-2024"]
[Site "Chess.com"]
[Date "2024.07.09"]
[Round "8"]
[White "zacachess"]
[Black "BardArtem"]
[Result "0-1"]
[WhiteElo "2488"]
[BlackElo "2785"]
[TimeControl "180+1"]
[EndTime "15:28:43 PDT"]
[Termination "BardArtem won on time"]

1. e4 {[%clk 0:02:58.8]} 1... e5 {[%clk 0:02:57]} 2. Nf3 {[%clk 0:02:57.7]} 2...
Nc6 {[%clk 0:02:56.6]} 3. d4 {[%clk 0:02:58.1]} 3... exd4 {[%clk 0:02:54.4]} 4.
Nxd4 {[%clk 0:02:59]} 4... Bb4+ {[%clk 0:02:51.4]} 5. c3 {[%clk 0:02:58.5]} 5...
Bc5 {[%clk 0:02:51.3]} 6. Be3 {[%clk 0:02:58.3]} 6... Bb6 {[%clk 0:02:51.4]} 7.
Nf5 {[%clk 0:02:58.5]} 7... Bxe3 {[%clk 0:02:50.6]} 8. Nxe3 {[%clk 0:02:59.4]}
8... Nf6 {[%clk 0:02:50.6]} 9. f3 {[%clk 0:02:59.9]} 9... O-O {[%clk 0:02:50.6]}
10. c4 {[%clk 0:03:00.3]} 10... d6 {[%clk 0:02:50.8]} 11. Nc3 {[%clk 0:02:59.1]}
11... Nd7 {[%clk 0:02:46.4]} 12. Be2 {[%clk 0:02:58.6]} 12... Nc5 {[%clk
0:02:46.3]} 13. O-O {[%clk 0:02:58.4]} 13... f5 {[%clk 0:02:43.3]} 14. exf5
{[%clk 0:02:54.6]} 14... Bxf5 {[%clk 0:02:44.2]} 15. Nxf5 {[%clk 0:02:52.1]}
15... Rxf5 {[%clk 0:02:44.9]} 16. f4 {[%clk 0:02:48.1]} 16... Kh8 {[%clk
0:02:43]} 17. Qd2 {[%clk 0:02:39.8]} 17... Qf6 {[%clk 0:02:28.5]} 18. Bg4 {[%clk
0:02:29.1]} 18... h6 {[%clk 0:02:13.8]} 19. Nd5 {[%clk 0:02:00.7]} 19... Rxd5
{[%clk 0:02:13.8]} 20. cxd5 {[%clk 0:02:01.6]} 20... Ne7 {[%clk 0:02:10.4]} 21.
Rae1 {[%clk 0:01:59.5]} 21... Rf8 {[%clk 0:02:07]} 22. b4 {[%clk 0:01:43.9]}
22... Na6 {[%clk 0:02:03.4]} 23. a3 {[%clk 0:01:36.8]} 23... Qf7 {[%clk
0:01:57.3]} 24. Re6 {[%clk 0:01:27.1]} 24... Nb8 {[%clk 0:01:50.2]} 25. Rfe1
{[%clk 0:01:21.5]} 25... Ng8 {[%clk 0:01:50.2]} 26. g3 {[%clk 0:01:15.4]} 26...
Nd7 {[%clk 0:01:48.2]} 27. R6e2 {[%clk 0:01:04.5]} 27... Nb6 {[%clk 0:01:45.1]}
28. Be6 {[%clk 0:01:03.7]} 28... Qf6 {[%clk 0:01:43.6]} 29. Qb2 {[%clk
0:00:56.7]} 29... Qxb2 {[%clk 0:01:34.7]} 30. Rxb2 {[%clk 0:00:57.6]} 30... Nf6
{[%clk 0:01:35.6]} 31. Rd1 {[%clk 0:00:52.4]} 31... Nc4 {[%clk 0:01:34]} 32. Rb3
{[%clk 0:00:50.9]} 32... g5 {[%clk 0:01:27.9]} 33. Rc3 {[%clk 0:00:46.9]} 33...
b5 {[%clk 0:01:28]} 34. a4 {[%clk 0:00:40.8]} 34... a6 {[%clk 0:01:26.2]} 35.
axb5 {[%clk 0:00:39.9]} 35... axb5 {[%clk 0:01:27.1]} 36. Ra1 {[%clk 0:00:39.6]}
36... gxf4 {[%clk 0:01:27.4]} 37. gxf4 {[%clk 0:00:39.4]} 37... Ne4 {[%clk
0:01:27.6]} 38. Rf3 {[%clk 0:00:27.1]} 38... Ncd2 {[%clk 0:01:09.1]} 39. Rh3
{[%clk 0:00:21.6]} 39... Rxf4 {[%clk 0:01:09]} 40. Ra7 {[%clk 0:00:18]} 40...
Rf1+ {[%clk 0:00:57]} 41. Kg2 {[%clk 0:00:18.5]} 41... Rf2+ {[%clk 0:00:57.7]}
42. Kg1 {[%clk 0:00:19]} 42... Nf3+ {[%clk 0:00:48.3]} 43. Rxf3 {[%clk
0:00:16.1]} 43... Rxf3 {[%clk 0:00:47.1]} 44. Rxc7 {[%clk 0:00:16.3]} 44... Rb3
{[%clk 0:00:41.7]} 45. Bf5 {[%clk 0:00:15]} 45... Nf6 {[%clk 0:00:31.4]} 46. Rc6
{[%clk 0:00:08.6]} 46... Nxd5 {[%clk 0:00:22.1]} 47. Rxd6 {[%clk 0:00:08.8]}
47... Ne3 {[%clk 0:00:13.3]} 48. Rxh6+ {[%clk 0:00:07]} 48... Kg7 {[%clk
0:00:13.8]} 49. Rh7+ {[%clk 0:00:06]} 49... Kf6 {[%clk 0:00:14]} 50. Bh3 {[%clk
0:00:05.1]} 50... Rxb4 {[%clk 0:00:13.2]} 51. Rb7 {[%clk 0:00:04.6]} 51... Rb2
{[%clk 0:00:12.4]} 52. Bd7 {[%clk 0:00:02.8]} 52... b4 {[%clk 0:00:12.6]} 53. h4
{[%clk 0:00:02.5]} 53... b3 {[%clk 0:00:11.8]} 54. Ba4 {[%clk 0:00:02.3]} 54...
Rg2+ {[%clk 0:00:10.5]} 55. Kh1 {[%clk 0:00:02.3]} 55... b2 {[%clk 0:00:11.4]}
0-1

[Event "Late-Titled-Tuesday-Blitz-July-09-2024"]
[Site "Chess.com"]
[Date "2024.07.09"]
[Round "8"]
[White "SharathRk6"]
[Black "TC2304"]
[Result "1/2-1/2"]
[WhiteElo "2432"]
[BlackElo "2352"]
[TimeControl "180+1"]
[EndTime "15:28:46 PDT"]
[Termination "Game drawn - insufficient material"]

1. e4 {[%clk 0:03:00.9]} 1... e6 {[%clk 0:02:58.8]} 2. d4 {[%clk 0:03:00.8]}
2... d5 {[%clk 0:02:59.3]} 3. e5 {[%clk 0:03:01.1]} 3... c5 {[%clk 0:02:57.9]}
4. c3 {[%clk 0:02:58.7]} 4... Ne7 {[%clk 0:02:55.2]} 5. Nf3 {[%clk 0:02:55]}
5... b6 {[%clk 0:02:54.9]} 6. Na3 {[%clk 0:02:46.5]} 6... Qd7 {[%clk 0:02:52.3]}
7. dxc5 {[%clk 0:02:41.3]} 7... bxc5 {[%clk 0:02:49.9]} 8. Be3 {[%clk
0:02:41.7]} 8... Nec6 {[%clk 0:02:42.8]} 9. Be2 {[%clk 0:02:11.3]} 9... Ba6
{[%clk 0:02:36.8]} 10. O-O {[%clk 0:02:08.9]} 10... Be7 {[%clk 0:02:32.2]} 11.
Bxa6 {[%clk 0:02:05.6]} 11... Nxa6 {[%clk 0:02:32.1]} 12. Qa4 {[%clk 0:02:06.1]}
12... Nc7 {[%clk 0:02:28.8]} 13. Qg4 {[%clk 0:01:59]} 13... g6 {[%clk
0:02:18.7]} 14. Bh6 {[%clk 0:01:55.5]} 14... Rb8 {[%clk 0:02:12.9]} 15. b3
{[%clk 0:01:52.7]} 15... c4 {[%clk 0:02:08.7]} 16. b4 {[%clk 0:01:52.4]} 16...
a6 {[%clk 0:01:58.3]} 17. Nc2 {[%clk 0:01:47.1]} 17... Nb5 {[%clk 0:01:57.3]}
18. Bd2 {[%clk 0:01:15.9]} 18... h5 {[%clk 0:01:54.8]} 19. Qg3 {[%clk
0:01:13.6]} 19... d4 {[%clk 0:01:46.3]} 20. cxd4 {[%clk 0:01:12.3]} 20... Nbxd4
{[%clk 0:01:45]} 21. Ncxd4 {[%clk 0:01:12.7]} 21... Nxd4 {[%clk 0:01:45.8]} 22.
Nxd4 {[%clk 0:01:11.6]} 22... Qxd4 {[%clk 0:01:46.7]} 23. Bc3 {[%clk 0:01:11.6]}
23... Qg4 {[%clk 0:01:43.6]} 24. Qxg4 {[%clk 0:01:09.1]} 24... hxg4 {[%clk
0:01:44.5]} 25. a3 {[%clk 0:01:06.9]} 25... Kd7 {[%clk 0:01:22]} 26. Rad1+
{[%clk 0:01:03.9]} 26... Kc6 {[%clk 0:01:13.6]} 27. Rd4 {[%clk 0:01:04.3]} 27...
Kb5 {[%clk 0:01:07.5]} 28. Rxg4 {[%clk 0:01:04]} 28... Rbd8 {[%clk 0:00:52]} 29.
Ra1 {[%clk 0:00:59.9]} 29... Kb6 {[%clk 0:00:27.9]} 30. Rxc4 {[%clk 0:00:37.1]}
30... Rc8 {[%clk 0:00:26.1]} 31. Bd4+ {[%clk 0:00:22.6]} 31... Kb5 {[%clk
0:00:22.2]} 32. Rc3 {[%clk 0:00:21.5]} 32... Rxc3 {[%clk 0:00:21.5]} 33. Bxc3
{[%clk 0:00:21.7]} 33... Kc4 {[%clk 0:00:20.5]} 34. Rc1 {[%clk 0:00:21.2]} 34...
Kb3 {[%clk 0:00:21]} 35. Bd4 {[%clk 0:00:20]} 35... Rd8 {[%clk 0:00:18.3]} 36.
Bc5 {[%clk 0:00:18.1]} 36... Bg5 {[%clk 0:00:17.1]} 37. Be3 {[%clk 0:00:13.6]}
37... Bxe3 {[%clk 0:00:12.5]} 38. fxe3 {[%clk 0:00:14.5]} 38... Kxa3 {[%clk
0:00:10.7]} 39. Ra1+ {[%clk 0:00:13.8]} 39... Kxb4 {[%clk 0:00:09.3]} 40. Rxa6
{[%clk 0:00:14.7]} 40... Rd7 {[%clk 0:00:06.8]} 41. Rd6 {[%clk 0:00:14.1]} 41...
Rc7 {[%clk 0:00:03.1]} 42. Kf2 {[%clk 0:00:14.5]} 42... Kc5 {[%clk 0:00:02.7]}
43. Kf3 {[%clk 0:00:15]} 43... Ra7 {[%clk 0:00:01.9]} 44. h4 {[%clk 0:00:15.3]}
44... Ra1 {[%clk 0:00:02.3]} 45. Rd7 {[%clk 0:00:13.3]} 45... Rh1 {[%clk
0:00:01.6]} 46. Kg3 {[%clk 0:00:13.2]} 46... Rf1 {[%clk 0:00:01.8]} 47. Kg4
{[%clk 0:00:11.6]} 47... Kc4 {[%clk 0:00:02.3]} 48. Kg5 {[%clk 0:00:11.8]} 48...
Rf2 {[%clk 0:00:02.5]} 49. g4 {[%clk 0:00:12]} 49... Rf3 {[%clk 0:00:03.1]} 50.
h5 {[%clk 0:00:11]} 50... gxh5 {[%clk 0:00:04]} 51. gxh5 {[%clk 0:00:11.7]}
51... Rxe3 {[%clk 0:00:04.6]} 52. Kf6 {[%clk 0:00:10.6]} 52... Rf3+ {[%clk
0:00:04.4]} 53. Kg7 {[%clk 0:00:11.1]} 53... Rf5 {[%clk 0:00:03.5]} 54. h6
{[%clk 0:00:10.9]} 54... Rxe5 {[%clk 0:00:04.2]} 55. h7 {[%clk 0:00:11.5]} 55...
Rh5 {[%clk 0:00:04.6]} 56. Rxf7 {[%clk 0:00:09.7]} 56... e5 {[%clk 0:00:02.8]}
57. h8=Q {[%clk 0:00:09.3]} 57... Rxh8 {[%clk 0:00:02.6]} 58. Kxh8 {[%clk
0:00:10.2]} 58... e4 {[%clk 0:00:03.3]} 59. Kg7 {[%clk 0:00:06]} 59... e3 {[%clk
0:00:03.7]} 60. Re7 {[%clk 0:00:06.1]} 60... Kd3 {[%clk 0:00:03.7]} 61. Kf6
{[%clk 0:00:06.7]} 61... e2 {[%clk 0:00:04.3]} 62. Kf5 {[%clk 0:00:06.1]} 62...
Kd2 {[%clk 0:00:04.9]} 63. Rd7+ {[%clk 0:00:06.7]} 63... Kc1 {[%clk 0:00:04]}
64. Re7 {[%clk 0:00:06.8]} 64... Kd1 {[%clk 0:00:04.5]} 65. Rxe2 {[%clk
0:00:05.7]} 65... Kxe2 {[%clk 0:00:04.6]} 1/2-1/2

[Event "Late-Titled-Tuesday-Blitz-July-09-2024"]
[Site "Chess.com"]
[Date "2024.07.09"]
[Round "8"]
[White "adrivillu"]
[Black "AlejandroArias"]
[Result "0-1"]
[WhiteElo "2412"]
[BlackElo "2341"]
[TimeControl "180+1"]
[EndTime "15:28:47 PDT"]
[Termination "AlejandroArias won by checkmate"]

1. e4 {[%clk 0:03:00.9]} 1... c5 {[%clk 0:02:59.3]} 2. Nf3 {[%clk 0:02:59.2]}
2... Nc6 {[%clk 0:02:59.4]} 3. d4 {[%clk 0:02:58.1]} 3... cxd4 {[%clk
0:03:00.3]} 4. Nxd4 {[%clk 0:02:58.5]} 4... g6 {[%clk 0:03:00.6]} 5. Nc3 {[%clk
0:02:58.7]} 5... Bg7 {[%clk 0:03:00.5]} 6. Be3 {[%clk 0:02:59]} 6... Nf6 {[%clk
0:03:00.5]} 7. Bc4 {[%clk 0:02:58.8]} 7... Qa5 {[%clk 0:03:00]} 8. O-O {[%clk
0:02:58.4]} 8... O-O {[%clk 0:03:00.1]} 9. Bb3 {[%clk 0:02:59]} 9... d6 {[%clk
0:02:59.8]} 10. h3 {[%clk 0:02:59.6]} 10... Bd7 {[%clk 0:03:00.1]} 11. f4 {[%clk
0:02:58.7]} 11... Nxd4 {[%clk 0:02:54.4]} 12. Bxd4 {[%clk 0:02:59.6]} 12... Qh5
{[%clk 0:02:40.2]} 13. Qd3 {[%clk 0:02:53.4]} 13... e5 {[%clk 0:01:29.4]} 14.
Be3 {[%clk 0:02:46.3]} 14... Bc6 {[%clk 0:01:26.5]} 15. Nd5 {[%clk 0:02:32.2]}
15... Bxd5 {[%clk 0:01:20.1]} 16. exd5 {[%clk 0:02:29.2]} 16... Nd7 {[%clk
0:01:15.6]} 17. f5 {[%clk 0:02:23.8]} 17... e4 {[%clk 0:01:06.4]} 18. Qxe4
{[%clk 0:02:20.1]} 18... Rae8 {[%clk 0:01:05.5]} 19. Qd3 {[%clk 0:02:18.5]}
19... Bxb2 {[%clk 0:01:03.3]} 20. Rae1 {[%clk 0:02:18.1]} 20... Be5 {[%clk
0:00:57.6]} 21. fxg6 {[%clk 0:02:10.3]} 21... hxg6 {[%clk 0:00:57.1]} 22. Ba4
{[%clk 0:02:08.2]} 22... Re7 {[%clk 0:00:52.8]} 23. Bxa7 {[%clk 0:01:59.7]}
23... Ra8 {[%clk 0:00:36.8]} 24. Bxd7 {[%clk 0:01:56.7]} 24... Rxa7 {[%clk
0:00:36.7]} 25. Bg4 {[%clk 0:01:56.6]} 25... Qh4 {[%clk 0:00:36.5]} 26. g3
{[%clk 0:01:41.7]} 26... Qg5 {[%clk 0:00:27.7]} 27. a3 {[%clk 0:01:21.9]} 27...
Rc7 {[%clk 0:00:26.5]} 28. Kg2 {[%clk 0:00:59.9]} 28... Rc3 {[%clk 0:00:25.6]}
29. Qb5 {[%clk 0:00:45.3]} 29... Rxg3+ {[%clk 0:00:23.6]} 30. Kh1 {[%clk
0:00:45.5]} 30... Ra8 {[%clk 0:00:16.9]} 31. Qxb7 {[%clk 0:00:45.3]} 31... Rf8
{[%clk 0:00:16.6]} 32. Rxf7 {[%clk 0:00:34.2]} 32... Rxf7 {[%clk 0:00:15.9]} 33.
Be6 {[%clk 0:00:34.6]} 33... Rf3 {[%clk 0:00:10]} 34. Bxf7+ {[%clk 0:00:32.2]}
34... Rxf7 {[%clk 0:00:09.6]} 35. Qc8+ {[%clk 0:00:32.3]} 35... Kg7 {[%clk
0:00:09.7]} 36. Qg4 {[%clk 0:00:32.9]} 36... Qd2 {[%clk 0:00:08.5]} 37. Re2
{[%clk 0:00:31.4]} 37... Qd1+ {[%clk 0:00:07.5]} 38. Kg2 {[%clk 0:00:29.3]}
38... Qxd5+ {[%clk 0:00:06.6]} 39. Qe4 {[%clk 0:00:28.1]} 39... Qxe4+ {[%clk
0:00:05]} 40. Rxe4 {[%clk 0:00:29]} 40... Rc7 {[%clk 0:00:05.2]} 41. c4 {[%clk
0:00:25.4]} 41... Kf6 {[%clk 0:00:03.9]} 42. Kf3 {[%clk 0:00:23.6]} 42... Kf5
{[%clk 0:00:04.8]} 43. Rg4 {[%clk 0:00:23.2]} 43... Ra7 {[%clk 0:00:03.9]} 44.
Rg2 {[%clk 0:00:20.4]} 44... Rxa3+ {[%clk 0:00:04.8]} 45. Kf2 {[%clk 0:00:19.9]}
45... Ra2+ {[%clk 0:00:05.7]} 46. Kf3 {[%clk 0:00:20.5]} 46... Rxg2 {[%clk
0:00:06.2]} 47. Kxg2 {[%clk 0:00:21.4]} 47... Ke4 {[%clk 0:00:07.1]} 48. h4
{[%clk 0:00:22.1]} 48... Kf4 {[%clk 0:00:06.5]} 49. Kh3 {[%clk 0:00:23]} 49...
Bf6 {[%clk 0:00:06.3]} 50. h5 {[%clk 0:00:20.4]} 50... gxh5 {[%clk 0:00:06.3]}
51. Kg2 {[%clk 0:00:20.9]} 51... Ke4 {[%clk 0:00:07.2]} 52. Kh3 {[%clk
0:00:20.7]} 52... h4 {[%clk 0:00:08.1]} 53. Kg4 {[%clk 0:00:20.5]} 53... Kd4
{[%clk 0:00:07.9]} 54. Kf5 {[%clk 0:00:21]} 54... Bd8 {[%clk 0:00:08.8]} 55. Ke6
{[%clk 0:00:21.1]} 55... Kxc4 {[%clk 0:00:09]} 56. Kxd6 {[%clk 0:00:21.7]} 56...
h3 {[%clk 0:00:09.9]} 57. Ke5 {[%clk 0:00:22.5]} 57... h2 {[%clk 0:00:10.3]} 58.
Ke4 {[%clk 0:00:23.1]} 58... h1=Q+ {[%clk 0:00:11.2]} 59. Kf4 {[%clk 0:00:23.8]}
59... Bc7+ {[%clk 0:00:11.2]} 60. Kf5 {[%clk 0:00:24]} 60... Qf3+ {[%clk
0:00:11]} 61. Kg6 {[%clk 0:00:23.7]} 61... Qg4+ {[%clk 0:00:10.7]} 62. Kf6
{[%clk 0:00:23.8]} 62... Bd8+ {[%clk 0:00:11]} 63. Ke5 {[%clk 0:00:24.7]} 63...
Bc7+ {[%clk 0:00:09.1]} 64. Kf6 {[%clk 0:00:25]} 64... Kd5 {[%clk 0:00:08.9]}
65. Ke7 {[%clk 0:00:25.2]} 65... Qe6+ {[%clk 0:00:08.5]} 66. Kf8 {[%clk
0:00:25.8]} 66... Qd7 {[%clk 0:00:08.2]} 67. Kg8 {[%clk 0:00:25.6]} 67... Ke6
{[%clk 0:00:07.7]} 68. Kh8 {[%clk 0:00:26.5]} 68... Be5+ {[%clk 0:00:07.4]} 69.
Kg8 {[%clk 0:00:27.4]} 69... Qg7# {[%clk 0:00:07.6]} 0-1